Cogmind - Beta 13 @@@ ROGUE MODE // 2024.04.12 @ 14:25:03 Player: m1m1c Result: Destroyed by S-10 Pest with Light Assault Rifle Performance ------------- Evolutions (2) 1000 Regions Visited (4) 800 Robots Destroyed (30) 150 Value Destroyed (750) 750 Prototype IDs (4) 80 Alien Tech Used (0) 0 Bonus (0) 0 TOTAL SCORE: 2780 Bonus ------- None Cogmind --------- Core Integrity 0/550 Matter 293/300 Energy 263/265 System Corruption 2% Temperature Cool (0) Movement Core (50) Location -8/Materials Parts ------- > --- POWER (1) -------- Improved Ion Engine > --- PROPULSION (4) --- (None) > --- UTILITY (4) ------ Weight Redist. System Advanced Visual Processing Unit > --- WEAPON (2) ------- Advanced Beam Rifle > --- INVENTORY (5) ---- Huge Storage Unit Large Matter Pod (150) Structural Scanner Core Shielding Peak State ------------ > --- POWER ------------ Improved Ion Engine > --- PROPULSION ------- Flight Unit Flight Unit VTOL Module > --- UTILITY ---------- Weight Redist. System Advanced Visual Processing Unit Hardened Medium Armor Plating Hacking Suite > --- WEAPON ----------- Advanced Beam Rifle > --- INVENTORY -------- Huge Storage Unit Large Matter Pod Structural Scanner Core Shielding [Rating: 21] Favorites ----------- Power Heavy Ion Engine Engine Heavy Ion Engine Propulsion Wheel Wheel Wheel Flight Unit Flight Unit Utility Small Storage Unit Device Structural Scanner Storage Small Storage Unit Processor Advanced Visual Processing Unit Hackware Hacking Suite Protection Core Shielding Weapon Assault Rifle Energy Gun EM Pulse Gun Ballistic Gun Assault Rifle Build | -11 -10 -9 -9 -8 ------- Run | Yrd Mat Mat Min Mat Slots Evolved 4 | . . 2 . 2 Power . | . . . . . Propulsion 2 | . . 1 . 1 Utility 2 | . . 1 . 1 Weapon . | . . . . . Parts Attached 44 | 6 1 13 2 22 Power 5 | 1 . 3 . 1 Engine 5 | 1 . 3 . 1 Core . | . . . . . Reactor . | . . . . . Propulsion 16 | 2 . 5 . 9 Treads . | . . . . . Leg . | . . . . . Wheel 9 | 2 . 5 . 2 Hover . | . . . . . Flight 7 | . . . . 7 Utility 12 | 1 1 2 2 6 Device 3 | . 1 . 1 1 Storage 3 | 1 . . 1 1 Processor 1 | . . . . 1 Hackware 1 | . . . . 1 Protection 4 | . . 2 . 2 Artifact . | . . . . . Weapon 11 | 2 . 3 . 6 Energy Gun 9 | 1 . 2 . 6 Energy Cannon . | . . . . . Ballistic Gun 2 | 1 . 1 . . Ballistic Cannon . | . . . . . Launcher . | . . . . . Special Weapon . | . . . . . Impact Weapon . | . . . . . Slashing Weapon . | . . . . . Piercing Weapon . | . . . . . Special Melee Weapon . | . . . . . Unidentified Prototypes 4 | . . 2 . 2 Parts Lost 29 | . . 9 . 20 Power 3 | . . 2 . 1 Propulsion 15 | . . 4 . 11 Utility 5 | . . 1 . 4 Weapon 6 | . . 2 . 4 Highest Loss Streak 10 | . . 6 . 10 To Critical Strikes . | . . . . . Average Slot Usage (%) 76 | . 90 83 100 58 Engine 9 | . 14 9 11 7 Wheel 19 | . 28 23 33 8 Flight 5 | . . . . 13 Device 8 | . 5 11 11 5 Storage 8 | . 14 11 11 3 Protection 5 | . . 6 11 5 Energy Gun 10 | . 14 12 11 9 Ballistic Gun 7 | . 14 9 11 2 Naked Turns . | . . . . . Heaviest Build 41 | 12 13 21 26 41 Greatest Support 42 | 20 20 36 30 42 Greatest Overweight (x) 7 | . . 1 . 7 Average Overweight (x) . | . . . . . Largest Inventory Capacity 15 | 8 8 8 10 15 Average Capacity 8 | 6 8 8 9 8 Most Carried 6 | 2 5 6 6 6 Average Carried 4 | . 3 4 4 4 Final Capacity 10 | 8 8 8 10 5 Final Carried 6 | 2 5 3 6 4 Class Distribution -------------------- 59% | Mutant 29% | Scavenger-Mutant 10% | Sprinter Dominant Class ---------------- Mutant | -10/Materials Mutant | -9/Materials Scavenger-Mutant | -9/Mines Mutant | -8/Materials Resources | -11 -10 -9 -9 -8 ----------- Run | Yrd Mat Mat Min Mat Matter Collected 875 | 239 63 390 20 163 Remotely . | . . . . . Salvage Created 1099 | . 102 595 . 402 Parts 65 | . 6 30 . 29 Haulers Intercepted 2 | . . 1 . 1 Recyclers Shooed 2 | . . 1 1 . Parts Field Recycled . | . . . . . Retrieved Matter . | . . . . . Parts Self-Destructed . | . . . . . Prevented . | . . . . . Kills | -11 -10 -9 -9 -8 ------- Run | Yrd Mat Mat Min Mat Combat Hostiles Destroyed 21 | . 2 11 1 7 Melee 1 | . 1 . . . Guns 19 | . 1 11 1 6 Classes Destroyed 12 | . 2 6 1 3 Worker 2 | . . 2 . . Builder 1 | . . . . 1 Hauler 2 | . . 1 . 1 Recycler 1 | . . . . 1 Operator 2 | . 1 . . 1 Watcher 2 | . . 1 . 1 Swarmer 4 | . . . . 4 Grunt 12 | . 2 7 . 3 Brawler 1 | . . 1 . . Duelist 1 | . . 1 . . Sentry 2 | . . 2 . . Assembled 1 | . . . 1 . Best Kill Streak 7 | . 3 7 1 4 Combat Bots Only 4 | . 2 4 1 2 Max Kills in Single Turn 1 | . 1 1 1 1 Gunslinging . | . . . . . Exploded . | . . . . . Melee 1 | . 1 . . . Uniques/NPCs Destroyed . | . . . . . Combat | -11 -10 -9 -9 -8 -------- Run | Yrd Mat Mat Min Mat Hostile Shots Fired 344 | . 8 84 . 252 Missed 108 | . 3 23 . 82 Damage Taken 2774 | . 65 882 . 1827 Core 771 | . 33 184 . 554 Absorbed by Shields . | . . . . . Redirected to Shielding 39 | . . . . 39 Core Remaining (%) 80 | 100 86 . 54 . Volleys Fired 113 | . 6 60 1 46 Largest 2 | . 2 2 2 2 Hottest 106 | . 60 106 79 96 Shots Fired 188 | . 12 111 2 63 Gun 188 | . 12 111 2 63 Cannon . | . . . . . Launcher . | . . . . . Special . | . . . . . Kinetic 69 | . 6 49 1 13 Thermal 45 | . . 26 1 18 Explosive . | . . . . . Electromagnetic 74 | . 6 36 . 32 Robot Hit Streak 11 | . 4 11 1 7 Robot Miss Streak 5 | . 2 3 1 5 Penetration Max . | . . . . . Secondary Targets 3 | . . 1 . 2 Max Gunslinging Chain 1 | . . 1 . 1 Shots Hit Robots 112 | . 6 74 1 31 Core Hits 51 | . 4 31 1 15 Critical Kills 1 | . . 1 . . Critical Parts Destroyed 1 | . . 1 . . Critical Strikes 5 | . . 4 . 1 Burn 1 | . . . . 1 Destroy 2 | . . 2 . . Corrupt 2 | . . 2 . . Melee Attacks . | . . . . . Impact . | . . . . . Slashing . | . . . . . Piercing . | . . . . . Sneak Attacks . | . . . . . Combat Hostiles . | . . . . . Follow-up Attacks . | . . . . . Damage Inflicted 1799 | . 95 1088 17 599 Guns 1727 | . 78 1072 16 561 Cannons . | . . . . . Explosions . | . . . . . Melee . | . . . . . Ramming 72 | . 17 16 1 38 Kinetic 529 | . 24 396 16 93 Thermal 461 | . . 304 . 157 Explosive . | . . . . . Electromagnetic 737 | . 54 372 . 311 Impact . | . . . . . Slashing . | . . . . . Piercing . | . . . . . Highest Corruption 2 | . . . . 2 Average Corruption 2 | . . . . 2 Corruption Purged . | . . . . . Corruption Blocked . | . . . . . Effects 2 | . . . . 2 Matter Fused 1 | . . . . 1 Energy Discharges 1 | . . . . 1 Overload Shots . | . . . . . Overflow Damage . | . . . . . Projectiles . | . . . . . Explosions . | . . . . . Melee . | . . . . . Knockbacks 1 | . . 1 . . Impact 1 | . . 1 . . Kinetic . | . . . . . Secondary . | . . . . . Self-Inflicted Damage 33 | . 8 7 . 18 Shots . | . . . . . Rammed 10 | . 1 3 1 5 Targets Rammed 10 | . 1 3 1 5 Kicked . | . . . . . Crushed . | . . . . . Highest Temperature 380 | . 24 380 12 301 Average Temperature 103 | . 16 128 8 86 Received Heat Transfer 819 | . 30 357 . 432 Effects 5 | . . 3 . 2 Shutdowns 1 | . . 1 . . Energy Bleed 3 | . . 1 . 2 Matter Decay 1 | . . 1 . . Siege Activations . | . . . . . Robots Corrupted 1 | . . . . 1 Combat Hostiles 1 | . . . . 1 Parts Fried 5 | . 2 2 . 1 Impact Corruptions . | . . . . . Robots Melted . | . . . . . Combat Hostiles . | . . . . . Parts Melted 2 | . . . . 2 Heat Transferred 1147 | . . 740 . 407 Parts Sabotaged . | . . . . . Parts Stolen . | . . . . . Parts Stripped . | . . . . . Power Chain Reactions . | . . . . . Alert | -11 -10 -9 -9 -8 ------- Run | Yrd Mat Mat Min Mat Peak Influence 317 | . 40 317 123 193 Initial 123 | . . 29 123 47 Average 105 | . 6 158 123 98 Maximum Alert Level 1 | . . 1 . . Low Security (%) 90 | 100 100 68 100 100 Level 1 9 | . . 31 . . Level 2 . | . . . . . Level 3 . | . . . . . Level 4 . | . . . . . Level 5 . | . . . . . High Security . | . . . . . Max Security . | . . . . . Squads Dispatched 3 | . 2 . . 1 Investigation 1 | . 1 . . . Extermination . | . . . . . Reinforcement 2 | . 1 . . 1 Assault . | . . . . . Garrison . | . . . . . Intercept . | . . . . . Searches Triggered . | . . . . . Construction Impeded . | . . . . . Haulers Reinforced . | . . . . . Active Scanning Responses . | . . . . . Cargo Convoy Interrupts . | . . . . . Stealth | -11 -10 -9 -9 -8 --------- Run | Yrd Mat Mat Min Mat Distress Signals 6 | . . 3 . 3 Communications Jammed . | . . . . . Distress Signals . | . . . . . Times Spotted 61 | . 4 19 1 37 Peak Tracking Total 17 | . 3 5 1 17 Tactical Retreats 7 | . . 2 . 5 Traps | -11 -10 -9 -9 -8 ------- Run | Yrd Mat Mat Min Mat Traps Triggered 2 | . 1 . . 1 Indirectly . | . . . . . Trap Hack Attempts . | . . . . . Triggered . | . . . . . Disarmed . | . . . . . Reprogrammed . | . . . . . Reused . | . . . . . Traps Extracted . | . . . . . Installed . | . . . . . Triggered . | . . . . . Machines | -11 -10 -9 -9 -8 ---------- Run | Yrd Mat Mat Min Mat Machines Disabled . | . . . . . Max in Single Turn . | . . . . . Machines Repaired . | . . . . . Machines Dismantled . | . . . . . Machines Sabotaged . | . . . . . Overloaded Fab Kills . | . . . . . Hacking | -11 -10 -9 -9 -8 --------- Run | Yrd Mat Mat Min Mat Machines Accessed 5 | . 1 2 . 2 Terminals 5 | . 1 2 . 2 Fabricators . | . . . . . Repair Stations . | . . . . . Recycling Units . | . . . . . Scanalyzers . | . . . . . Garrison Access . | . . . . . Total Hacks 10 | . 2 4 . 4 Successful 7 | . 1 3 . 3 Failed 3 | . 1 1 . 1 Catastrophic . | . . . . . Database Lockouts . | . . . . . Manual . | . . . . . Terminals 10 | . 2 4 . 4 Fabricators . | . . . . . Repair Stations . | . . . . . Recycling Units . | . . . . . Scanalyzers . | . . . . . Garrison Access . | . . . . . Terminal Hacks 7 | . 1 3 . 3 Alert Level 2 | . . 2 . . Dispatch Records 1 | . . 1 . . Hauler Manifests 1 | . . . . 1 Registered Components 1 | . . . . 1 Zone Layout 2 | . 1 . . 1 Fabricator Hacks . | . . . . . Repair Station Hacks . | . . . . . Recycling Unit Hacks . | . . . . . Scanalyzer . | . . . . . Garrison Access Hacks . | . . . . . Unauthorized Hacks . | . . . . . Terminals . | . . . . . Fabricators . | . . . . . Repair Stations . | . . . . . Recycling Units . | . . . . . Scanalyzers . | . . . . . Garrison Access . | . . . . . Data Cores Recovered 1 | . . . . 1 Used . | . . . . . Hacking Detections 1 | . 1 . . . Full Trace Events . | . . . . . Feedback Events . | . . . . . Feedback Blocked . | . . . . . Robot Schematics Acquired . | . . . . . Robots Built . | . . . . . Authchips . | . . . . . Time . | . . . . . Total Robot Build Rating . | . . . . . Part Schematics Acquired . | . . . . . Parts Built . | . . . . . Authchips . | . . . . . Time . | . . . . . Total Part Build Rating . | . . . . . Parts Repaired . | . . . . . Time . | . . . . . Parts Recycled . | . . . . . Recycled Matter . | . . . . . Retrieved Matter . | . . . . . Retrieved Components . | . . . . . Parts Scanalyzed . | . . . . . Part Schematics Acquired . | . . . . . Parts Damaged . | . . . . . Bothacking | -11 -10 -9 -9 -8 ------------ Run | Yrd Mat Mat Min Mat Used RIF Installer . | . . . . . Robots Hacked . | . . . . . Non-combat . | . . . . . Combat . | . . . . . Robot Hacks Applied . | . . . . . Relay Couplers Released . | . . . . . Fabnet Peak Effective % . | . . . . . Robots Rewired . | . . . . . Allies Hacked . | . . . . . Hacks Repelled . | . . . . . Allies | -11 -10 -9 -9 -8 -------- Run | Yrd Mat Mat Min Mat Total Allies . | . . . . . Largest Group . | . . . . . Highest-Rated Group . | . . . . . Highest-Rated Ally . | . . . . . Total Orders . | . . . . . Ally Attacks . | . . . . . Total Damage . | . . . . . Kills . | . . . . . Allies Corrupted . | . . . . . Allies Melted . | . . . . . Intel | -11 -10 -9 -9 -8 ------- Run | Yrd Mat Mat Min Mat Robot Analysis Total . | . . . . . Derelict Logs Recovered 1 | . . . 1 . Drone Launches . | . . . . . Drone Recoveries . | . . . . . Exploration | -11 -10 -9 -9 -8 ------------- Run | Yrd Mat Mat Min Mat Turns Passed 1166 | 47 138 357 160 464 Spaces Moved 1172 | 49 144 197 167 615 Core 30 | 8 . . . 22 Treads . | . . . . . Legs . | . . . . . Wheels 659 | 41 144 197 167 110 Hover . | . . . . . Flight 483 | . . . . 483 Fastest Speed 29 | 50 80 80 80 29 Average Speed 64 | 75 80 83 80 49 Slowest Speed 400 | 80 80 95 80 400 Overloaded Moves . | . . . . . Propulsion Burnouts . | . . . . . Robots Hopped 9 | . . . . 9 Cave-ins Triggered . | . . . . . Exploration Rate (%) 26 | 3 27 17 33 50 Regions Visited 4 Branch Regions 1 Pre-discovered Areas . | . . . . . Known Exits Taken . | . . . . . Unknown Exits Taken 4 | 1 1 1 1 . Scrap Searched 2 | . . . 2 . Spaces Dug . | . . . . . Terrain Destroyed . | . . . . . Melee . | . . . . . Projectile . | . . . . . AOE . | . . . . . Terrain Rammed . | . . . . . Walls Destroyed . | . . . . . Machines Disabled . | . . . . . Actions | -11 -10 -9 -9 -8 --------- Run | Yrd Mat Mat Min Mat Total 1371 | 56 154 275 190 696 Wait 11 | . . . . 11 Move 1153 | 48 144 197 166 598 Hop 8 | . . . . 8 Pick Up 10 | 2 3 2 3 . Fast Attach 32 | 6 1 8 . 17 Attach 8 | . . 4 . 4 Detach 1 | . . . . 1 Swap 4 | . . 1 2 1 Drop 7 | . . 1 1 5 Fire 113 | . 6 60 1 46 Melee . | . . . . . Ram 8 | . . 2 1 5 Kick . | . . . . . Crush . | . . . . . Escape Stasis . | . . . . . Rewire 16 | . . . 16 . Trap . | . . . . . Miscellaneous . | . . . . . Route ------- -11/Scrapyard -10/Materials -9/Materials -9/Mines -8/Materials (discovered 1 exit: Fac) History --------- Turn | Location | Event 5 | -11/Scrapyard | Discovered new exit (range 15) 48 | -11/Scrapyard | Entered Materials 146 | -10/Materials | Discovered new exit (range 10) 186 | -10/Materials | Entered another Materials area 186 | -9/Materials | Evolved 2 slots: Propulsion x1, Utility x1 311 | -9/Materials | Build established: Mutant 408 | -9/Materials | Discovered new exit (range 8) 461 | -9/Materials | Lost 6 parts (2p2n1u1w) 543 | -9/Materials | Entered Mines 569 | -9/Mines | Learned location of 1 exit from Materials 574 | -9/Mines | Assembled infested the area 579 | -9/Mines | Assisted by a Guerilla fighting off Assembled 672 | -9/Mines | Discovered new exit (range 13) 703 | -9/Mines | Entered Materials 703 | -8/Materials | Evolved 2 slots: Propulsion x1, Utility x1 704 | -8/Materials | Identified exit to Factory 799 | -8/Materials | Build established: Scavenger-Mutant 903 | -8/Materials | Lost 10 parts (1p3n2u4w) 939 | -8/Materials | Core integrity fell below 50% 1148 | -8/Materials | Core integrity fell below 20% 1167 | -8/Materials | Destroyed by S-10 Pest with Light Assault Rifle Last Messages --------------- Connecting with Terminal... Flight Unit destroyed. Slammed into Y-45 Defender. Slammed into S-10 Pest. Critical hit (Burn: +37). Slammed into S-10 Pest. Flight Unit destroyed. S-10 Pest suffers critical hit (Burn). Hacking Suite destroyed. S-10 Pest destroyed. Hrd. Medium Armor Plating destroyed. Critical hit (Burn: +37). VTOL Module destroyed. Slammed into A-02 Transporter. Destabilizing: Core damaged (-22). Slammed into U-05 Engineer. Critical hit (Burn: +37). K-01 Serf destroyed. System corrupted: Matter fused (-6). S-10 Pest destroyed. Map ----- +----------------------------------------------------+ | | | | | | | | | | | | | | | | | | | | | | | | | | | ?????????????????????????????????????????????????? | | ?????????????????????????????????????????????????? | | ?????????????????????????????????????????????????? | | ?????????????????????????????????????????????????? | | ??????????????????########???????????????????????? | | ??????????????????# #???????????????????????? | | ??????????????????# #???????????????????????? | | ??????????????????# #???????????????????????? | | ??????????????????# =#""?????????????????????? | | ??????????????????# ?""??????????????######## | | ??????????????????# ?? ??????????????# | | #############+######+#+####+####??????????# """ | | s s @ #??????????# """ | | s ag s + """ # """ | | ==% ###### """ # | | ?############# g%########### #????? # """ | | ?????????????# #?????????# #????? "T" # """ | | ?????????????# #?????????# #?????###### """ | | ?????????????+ #?????????+ #??????????# | | ?????????????# #?????????# ############ | | ?????????????# #?????????# ## # "T" | | ?????????????# #?????? !## ## """" ######## | | ?????????????# #????" # # """" # # | | ?????????##### #??"""" ?# # """" # # | | ?????????#// # """"" # T + # # | | ?????????#// + """"" # # # " # | | ?????????#== # """ # # * #""" # | | ?????????#== #?? ### ### ! = #""" # | | ?????????#]] #???? #?# #?#######+###""" + | | ?????????#]] #?????? #?# #???????# #?# "" # | | ?????????##### ############+##??????# #?#""" # | | ?????????????# ## #??????# #?#"" # | | ?????????????# ##""" """ """ #??????# #?#"" # | | ?????????????# ##"R """ """ #??????# #?# " # | | ?????????????# ##""" """ """ #??????# #?# # | | ????????????## ## #??????# #?######## | | ??# ????????# ###+##########??????# #?????# | +----------------------------------------------------+ Best States ------------- Heat Dissipation 31 Energy Generation 14 Energy Capacity 280 Matter Stores 300 Matter Capacity 300 Sight Range 20 Robot Scan Range 14 Terrain Scan Density 10 Additional Mass Support 6 Armor Coverage 225 Core Shielding 20 Evasion (%) 63 Offensive Hacking 10 Item Schematics ----------------- None Robot Schematics ------------------ None Fabricated ------------ Nothing Alien Tech Used ----------------- None Achievements -------------- None Challenges ------------ None Game ------ Seed SalvageLobotomyClaymores Manual? 0 Play Time 00:16:49 Cumulative 14.2 hours Start 2024.04.12 @ 14:07:31 End 2024.04.12 @ 14:25:03 Sessions 1 Manual Loads 0 Difficulty Rogue Special Mode None Game No. 49 Rogue 49 Adventurer 0 Explorer 0 Win Type - Total 0 Types 0/0/0/0/0/0/0/0/0 Lore% 12 Gallery% 21 Achievement% 19 Wizard Run 0 Options --------- Layout 1 ASCII 1 Keyboard 0 Movement Arrows Keybinds 0 Fullscreen 1 Font 18/SmallcapsGlow Map View 50x40 Zoom Use 0% Tactical HUD 0 Map Filters NONE Filters NONE Steam 1 RUN: de0a9c9d-848e-4cb6-8278-40b5c8a949e9